[Event "Romanian Championship Open 2025"]
[Site "Craiova"]
[Date "2025.02.15"]
[Round "1.5"]
[White "Dumitrescu, Daniel"]
[Black "Jianu, Vlad-Cristian"]
[Result "0-1"]
[Annotator "TA"]
[ECO "A46"]
[WhiteElo "2038"]
[BlackElo "2467"]
[PlyCount "80"]
[EventDate "2025.02.12"]
[EventCountry "ROU"]
[SourceTitle "playchess.com"]
[Source "ChessBase"]
[SourceQuality "1"]
[TimeControl "40/5400+30:900+30"]

{[%evp 9,79,16,20,19,14,-21,-24,-28,-19,-55,-41,-50,-43,-97,-95,-112,-103,-112,-102,-181,-175,-207,-202,-214,-207,-205,-204,-196,-193,-217,-200,-209,-205,-246,-224,-302,-305,-282,-280,-310,-307,-414,-377,-465,-462,-490,-478,-469,-458,-495,-479,-476,-458,-417,-410,-521,-525,-555,-541,-519,-425,-801,-795,-29979,-29981,-29987,-29988,-29997,-29998,-29998,-29999,-29999]} 1. Nf3 {[%emt 0:00:06]} Nf6 {[%emt 0:00:06]} 2. g3 {[%emt 0:00:11]} d5 {[%emt 0:00:48]} 3. Bg2 {[%emt 0:00:15]} e6 {[%emt 0:00:07]} 4. O-O {[%emt 0:01:40]} Be7 {[%emt 0:01:32]} 5. d4 {[%emt 0:01:35]} b5 {[%emt 0:00:57]} 6. a4 {[%emt 0:04:28] A46: 1 d4 Nf6 2 Nf3 e6: Torre, London and Colle Systems.} b4 {[%emt 0:00:07]} 7. a5 {[%emt 0:03:44]} O-O {[%emt 0:01:39]} 8. Nbd2 {[%emt 0:00:31] Black has an edge.} Nbd7 {[%emt 0:10:52]} 9. Nb3 {[%emt 0:01:27]} Ba6 {[%emt 0:03:20]} 10. Re1 {[%emt 0:04:16]} c5 {[%emt 0:03:32]} 11. c3 $146 {[%emt 0:09:48]} (11. Ne5 $15) ({Predecessor:} 11. dxc5 Nxc5 12. Nbd4 Rc8 13. Ne5 Bb7 14. Bd2 Nce4 15. a6 Ba8 16. Be3 Qc7 17. Nd3 {0-1 Cori Tello,D (2389)-Priyanka,N (2272) Swiss Queens Wed #14 blitz 2024 (7)}) 11... bxc3 $17 {[%emt 0:04:56]} 12. bxc3 {[%emt 0:00:06]} Ne4 {[%emt 0:01:48][%csl Oe4] Strong Square Black (e4)} 13. Qc2 {[%emt 0:02:32]} Rc8 {[%emt 0:08:26] Black is more active.} 14. Qb2 {[%emt 0:09:36] [#]} (14. Bb2 $17) 14... cxd4 $1 $19 {[%emt 0:07:32]} 15. cxd4 {[%emt 0:00:09]} Bb4 {[%emt 0:06:29]} 16. Nfd2 {[%emt 0:06:50]} Bc3 {[%emt 0:05:15]} 17. Qa3 {[%emt 0:00:12]} Nxd2 {[%emt 0:01:05]} 18. Bxd2 {[%emt 0:00:28]} Bxa1 {[%emt 0:00:16]} 19. Nxa1 {[%emt 0:02:04]} Qc7 {[%emt 0:03:03]} 20. Nb3 {[%emt 0:02:01]} Rfe8 {[%emt 0:06:29]} 21. Bb4 {[%emt 0:07:01]} Rb8 {[%emt 0:06:24]} 22. Nc5 {[%emt 0:02:15]} Nxc5 {[%emt 0:00:04]} 23. Bxc5 {[%emt 0:00:05]} Rb5 {[%emt 0:01:58]} 24. Ra1 {[%emt 0:00:48]} Reb8 {[%emt 0:07:47]} 25. Qc1 {[%emt 0:15:56] Dodges Rb1} Rxa5 {[%emt 0:02:16]} 26. Rxa5 {[%emt 0:00:26]} Qxa5 {[%emt 0:00:06]} 27. Bxa7 {[%emt 0:00:03]} Rc8 {[%emt 0:00:06]} 28. Bc5 {[%emt 0:01:17]} Bxe2 {[%emt 0:00:06]} 29. h4 {[%emt 0:00:14]} h6 {[%emt 0:03:06]} 30. Kh2 {[%emt 0:01:48]} Qa4 {[%emt 0:03:19]} 31. Qb2 {[%emt 0:01:19]} Bb5 {[%emt 0:02:13]} 32. Kh3 {[%emt 0:01:48]} Ra8 {[%emt 0:00:46]} 33. Bd6 {[%emt 0:00:52]} Qc4 {[%emt 0:00:39]} 34. Ba3 {[%emt 0:05:00]} Qe2 {[%emt 0:03:38]} 35. Qb4 {[%emt 0:00:36]} (35. Qxe2 $142 Bxe2 36. Bc5) 35... Qxf2 {[%emt 0:02:10] [#] White must now prevent ...Bf1.} 36. h5 {[%emt 0:01:46]} Bf1 {[%emt 0:00:37] Black mates.} 37. Bxf1 {[%emt 0:00:06]} Qxf1+ {[%emt 0:00:05]} 38. Kh4 {[%emt 0:00:16]} Qh1+ {[%emt 0:00:49]} 39. Kg4 {[%emt 0:00:05]} f5+ {[%emt 0:00:15]} 40. Kf4 {[%emt 0:00:00]} Qe4# {[%emt 0:00:00] Black took control after the opening.   Weighted Error Value: White=0.52/Black=0.06 (flawless)   Mistake:       	White=3     	---        Inaccurate:     	White=5     	---        OK:         	White=8     	Black=18     Best:        	---       	Black=3} 0-1

[Event "Romanian Championship Open 2025"]
[Site "Craiova"]
[Date "2025.02.15"]
[Round "1.6"]
[White "Ghimpu, Samuel-Timotei"]
[Black "Panc, Samuel"]
[Result "0-1"]
[Annotator "ChessBase"]
[ECO "B30"]
[WhiteElo "2456"]
[BlackElo "2036"]
[PlyCount "58"]
[EventDate "2025.02.12"]
[EventCountry "ROU"]
[SourceTitle "playchess.com"]
[Source "ChessBase"]
[SourceQuality "1"]
[TimeControl "40/5400+30:900+30"]

1. e4 {[%emt 0:00:18]} c5 {[%emt 0:00:12]} 2. Nf3 {[%emt 0:00:10]} Nc6 {[%emt 0:00:20]} 3. Nc3 {[%emt 0:00:13]} Nf6 {[%emt 0:00:11]} 4. Bb5 {[%emt 0:00:07]} Nd4 {[%emt 0:02:24]} 5. e5 {[%emt 0:03:55]} Nxb5 {[%emt 0:00:14]} 6. Nxb5 {[%emt 0:00:09]} Nd5 {[%emt 0:00:03]} 7. O-O {[%emt 0:04:27]} a6 {[%emt 0:01:28]} 8. c4 {[%emt 0:00:25]} Nc7 {[%emt 0:05:54]} 9. Nc3 {[%emt 0:06:49]} b5 {[%emt 0:13:13]} 10. d4 {[%emt 0:02:21]} cxd4 {[%emt 0:03:17]} 11. Nxd4 {[%emt 0:03:04]} bxc4 {[%emt 0:00:55]} 12. Qa4 {[%emt 0:24:57]} Bb7 {[%emt 0:01:06]} 13. Bg5 {[%emt 0:08:17]} h6 {[%emt 0:04:08]} 14. Bh4 {[%emt 0:01:07]} g5 {[%emt 0:02:41]} 15. Bg3 {[%emt 0:00:06]} e6 {[%emt 0:02:03]} 16. Qxc4 {[%emt 0:02:06]} h5 {[%emt 0:02:32]} 17. h3 {[%emt 0:02:03]} h4 {[%emt 0:01:24]} 18. Bh2 {[%emt 0:00:08]} g4 {[%emt 0:00:53]} 19. hxg4 {[%emt 0:01:28]} h3 {[%emt 0:00:21]} 20. g3 {[%emt 0:02:50]} Rc8 {[%emt 0:02:00]} 21. Qe2 {[%emt 0:02:11]} Bc5 {[%emt 0:15:41]} 22. Ne4 {[%emt 0:05:37]} Nb5 {[%emt 0:06:24]} 23. Nxb5 {[%emt 0:08:19]} axb5 {[%emt 0:00:07]} 24. Nf6+ {[%emt 0:00:35]} Kf8 {[%emt 0:06:40]} 25. Qxb5 {[%emt 0:06:03]} Rc7 {[%emt 0:03:30]} 26. Rac1 {[%emt 0:13:32]} Qa8 {[%emt 0:17:12]} 27. Qe2 {[%emt 0:01:36]} Bh1 {[%emt 0:02:10]} 28. Ne4 {[%emt 0:00:01]} Bxe4 {[%emt 0:00:25]} 29. Rxc5 {[%emt 0:00:04]} Bd3 {[%emt 0:01:03]} 0-1

[Event "Romanian Championship Open 2025"]
[Site "Craiova"]
[Date "2025.02.15"]
[Round "1.7"]
[White "Ivancescu, Bogdan-Andrei"]
[Black "Magold, Filip"]
[Result "0-1"]
[Annotator "ChessBase"]
[ECO "B40"]
[WhiteElo "2032"]
[BlackElo "2431"]
[PlyCount "66"]
[EventDate "2025.02.12"]
[EventCountry "ROU"]
[SourceTitle "playchess.com"]
[Source "ChessBase"]
[SourceQuality "1"]
[TimeControl "40/5400+30:900+30"]

1. e4 {[%emt 0:00:04]} c5 {[%emt 0:00:31]} 2. Nf3 {[%emt 0:00:06]} e6 {[%emt 0:00:06]} 3. g3 {[%emt 0:00:05]} Nc6 {[%emt 0:00:05]} 4. Bg2 {[%emt 0:00:04]} Nf6 {[%emt 0:00:05]} 5. Qe2 {[%emt 0:01:43]} e5 {[%emt 0:00:05]} 6. O-O {[%emt 0:01:54]} Be7 {[%emt 0:00:05]} 7. c3 {[%emt 0:00:37]} O-O {[%emt 0:00:06]} 8. Na3 {[%emt 0:01:33]} Re8 {[%emt 0:04:50]} 9. h3 {[%emt 0:05:13]} Bf8 {[%emt 0:07:54]} 10. Nc2 {[%emt 0:02:42]} d5 {[%emt 0:02:14]} 11. d3 {[%emt 0:02:01]} h6 {[%emt 0:01:24]} 12. Nh2 {[%emt 0:23:52]} Be6 {[%emt 0:01:37]} 13. f4 {[%emt 0:07:33]} exf4 {[%emt 0:02:11]} 14. gxf4 {[%emt 0:00:04]} dxe4 {[%emt 0:11:10]} 15. dxe4 {[%emt 0:00:45]} Bf5 {[%emt 0:00:40]} 16. Rd1 {[%emt 0:05:12]} Qc8 {[%emt 0:00:01]} 17. e5 {[%emt 0:02:23]} Bxh3 {[%emt 0:00:37]} 18. Qf3 {[%emt 0:03:56]} Bxg2 {[%emt 0:03:33]} 19. Kxg2 {[%emt 0:01:51]} Nh7 {[%emt 0:04:28]} 20. Ng4 {[%emt 0:07:59]} Qe6 {[%emt 0:13:14]} 21. Nce3 {[%emt 0:08:10]} Rad8 {[%emt 0:04:01]} 22. Nd5 {[%emt 0:02:49]} Nd4 {[%emt 0:10:46]} 23. Rxd4 {[%emt 0:05:23]} cxd4 {[%emt 0:00:05]} 24. Nc7 {[%emt 0:00:03]} Qb6 {[%emt 0:08:28]} 25. Nxe8 {[%emt 0:00:02]} Rxe8 {[%emt 0:00:20]} 26. cxd4 {[%emt 0:00:24]} Qxd4 {[%emt 0:00:21]} 27. Qxb7 {[%emt 0:03:15]} h5 {[%emt 0:03:18]} 28. Nf2 {[%emt 0:07:13]} Bc5 {[%emt 0:00:10]} 29. Nh3 {[%emt 0:04:30]} Re6 {[%emt 0:02:10]} 30. Qf3 {[%emt 0:02:30]} Rg6+ {[%emt 0:00:42]} 31. Kh2 {[%emt 0:00:26]} h4 {[%emt 0:00:22]} 32. Rb1 {[%emt 0:00:55]} Rg3 {[%emt 0:00:15]} 33. Qa8+ {[%emt 0:00:01]} Nf8 {[%emt 0:00:09]} 0-1

[Event "Romanian Championship Open 2025"]
[Site "Craiova"]
[Date "2025.02.15"]
[Round "1.8"]
[White "Bida, Mihai-Eugen"]
[Black "Barbu, Simon-Alexandru"]
[Result "1/2-1/2"]
[Annotator "ChessBase"]
[ECO "A57"]
[WhiteElo "2413"]
[BlackElo "2023"]
[PlyCount "89"]
[EventDate "2025.02.12"]
[EventCountry "ROU"]
[SourceTitle "playchess.com"]
[Source "ChessBase"]
[SourceQuality "1"]
[TimeControl "40/5400+30:900+30"]

1. d4 {[%emt 0:00:03]} Nf6 {[%emt 0:00:22]} 2. c4 {[%emt 0:00:09]} c5 {[%emt 0:00:24]} 3. d5 {[%emt 0:00:07]} b5 {[%emt 0:00:04]} 4. Nd2 {[%emt 0:00:21]} b4 {[%emt 0:03:12]} 5. e4 {[%emt 0:01:08]} d6 {[%emt 0:00:04]} 6. h3 {[%emt 0:02:14]} g6 {[%emt 0:00:48]} 7. Bd3 {[%emt 0:04:43]} e5 {[%emt 0:23:24]} 8. dxe6 {[%emt 0:01:20]} Bxe6 {[%emt 0:00:11]} 9. Ne2 {[%emt 0:06:02]} Bg7 {[%emt 0:00:42]} 10. f4 {[%emt 0:04:34]} Nc6 {[%emt 0:03:30]} 11. O-O {[%emt 0:03:33]} O-O {[%emt 0:00:08]} 12. Nf3 {[%emt 0:07:02]} Qe7 {[%emt 0:03:16]} 13. Ng3 {[%emt 0:09:46]} a5 {[%emt 0:15:34]} 14. Re1 {[%emt 0:07:18]} Rfe8 {[%emt 0:16:17]} 15. Rb1 {[%emt 0:04:51]} Bc8 {[%emt 0:11:57]} 16. b3 {[%emt 0:06:32]} Nd7 {[%emt 0:00:31]} 17. Nf1 {[%emt 0:03:34]} Bb7 {[%emt 0:02:26]} 18. Kh1 {[%emt 0:05:50]} Nf8 {[%emt 0:06:11]} 19. Ne3 {[%emt 0:06:25]} Nd4 {[%emt 0:00:05]} 20. Nd5 {[%emt 0:03:52]} Qd8 {[%emt 0:01:23]} 21. Bb2 {[%emt 0:02:07]} Nfe6 {[%emt 0:02:02]} 22. f5 {[%emt 0:02:59]} Nxf3 {[%emt 0:01:29]} 23. Qxf3 {[%emt 0:01:04]} Nd4 {[%emt 0:00:56]} 24. Qf2 {[%emt 0:01:37]} a4 {[%emt 0:01:33]} 25. f6 {[%emt 0:02:10]} Bh8 {[%emt 0:01:35]} 26. Bxd4 {[%emt 0:03:35]} cxd4 {[%emt 0:00:05]} 27. Ne7+ {[%emt 0:01:26]} Rxe7 {[%emt 0:00:27]} 28. fxe7 {[%emt 0:00:05]} Qxe7 {[%emt 0:00:01]} 29. bxa4 {[%emt 0:02:51]} Rxa4 {[%emt 0:00:09]} 30. e5 {[%emt 0:02:23]} Bxe5 {[%emt 0:02:07]} 31. c5 {[%emt 0:01:31]} Qe6 {[%emt 0:03:49]} 32. Be4 {[%emt 0:02:04]} Rxa2 {[%emt 0:00:02]} 33. Qf3 {[%emt 0:00:36]} Ra3 {[%emt 0:00:25]} 34. Qg4 {[%emt 0:00:31]} f5 {[%emt 0:01:12]} 35. Bxf5 Qxf5 {[%emt 0:00:01]} 36. Qxf5 {[%emt 0:00:27]} gxf5 {[%emt 0:00:01]} 37. Rxb4 {[%emt 0:00:18]} Be4 {[%emt 0:00:37]} 38. cxd6 {[%emt 0:01:06]} Rxh3+ {[%emt 0:01:29]} 39. Kg1 {[%emt 0:00:05]} Bh2+ {[%emt 0:00:39]} 40. Kf1 {[%emt 0:00:00]} Bd3+ {[%emt 0:00:00]} 41. Kf2 {[%emt 0:01:19]} Bg3+ {[%emt 0:08:41]} 42. Kg1 {[%emt 0:00:10]} Bxe1 {[%emt 0:02:55]} 43. d7 {[%emt 0:03:33]} Bh4 {[%emt 0:03:13]} 44. gxh3 {[%emt 0:01:17]} Be4 {[%emt 0:01:38]} 45. Rb8+ {[%emt 0:01:12]} 1/2-1/2

[Event "Romanian Championship Open 2025"]
[Site "Craiova"]
[Date "2025.02.15"]
[Round "1.9"]
[White "Tamas, Christian-Arrydan"]
[Black "Ilinca, Felix-Antonio"]
[Result "1/2-1/2"]
[Annotator "ChessBase"]
[ECO "D35"]
[WhiteElo "2016"]
[BlackElo "2412"]
[PlyCount "113"]
[EventDate "2025.02.12"]
[EventCountry "ROU"]
[SourceTitle "playchess.com"]
[Source "ChessBase"]
[SourceQuality "1"]
[TimeControl "40/5400+30:900+30"]

1. d4 {[%emt 0:00:05]} d5 {[%emt 0:00:30]} 2. c4 {[%emt 0:00:15]} e6 {[%emt 0:00:25]} 3. Nc3 {[%emt 0:00:10]} Nf6 {[%emt 0:00:26]} 4. cxd5 {[%emt 0:00:08]} exd5 {[%emt 0:00:31]} 5. Bg5 {[%emt 0:00:20]} Bb4 {[%emt 0:01:02]} 6. e3 {[%emt 0:00:56]} h6 {[%emt 0:00:34]} 7. Bh4 {[%emt 0:00:05]} g5 {[%emt 0:00:40]} 8. Bg3 {[%emt 0:00:05]} Ne4 {[%emt 0:00:49]} 9. a3 {[%emt 0:01:01]} Bxc3+ {[%emt 0:02:59]} 10. bxc3 {[%emt 0:00:05]} h5 {[%emt 0:00:52]} 11. f3 {[%emt 0:00:31]} Nxg3 {[%emt 0:00:53]} 12. hxg3 {[%emt 0:00:04]} Nc6 {[%emt 0:01:02]} 13. Bd3 {[%emt 0:05:58]} Qd6 {[%emt 0:10:33]} 14. g4 {[%emt 0:05:37]} Bd7 {[%emt 0:04:03]} 15. Kf2 {[%emt 0:11:19]} O-O-O {[%emt 0:05:40]} 16. gxh5 {[%emt 0:03:07]} Rde8 {[%emt 0:05:56]} 17. Ne2 {[%emt 0:16:28]} Na5 {[%emt 0:06:25]} 18. Ng3 {[%emt 0:07:28]} Kb8 {[%emt 0:04:59]} 19. Re1 {[%emt 0:07:59]} Rhf8 {[%emt 0:08:03]} 20. Qc2 {[%emt 0:01:46]} c5 {[%emt 0:06:35]} 21. Rac1 {[%emt 0:11:12]} Ka8 {[%emt 0:06:19]} 22. Qb1 {[%emt 0:03:58]} c4 {[%emt 0:02:49]} 23. Bf5 {[%emt 0:03:49]} Nb3 {[%emt 0:01:03]} 24. Rcd1 {[%emt 0:02:16]} Ba4 {[%emt 0:01:22]} 25. Re2 {[%emt 0:00:37]} Rh8 {[%emt 0:04:54]} 26. Rh1 {[%emt 0:00:11]} Bc6 {[%emt 0:04:17]} 27. Bg4 {[%emt 0:03:46]} Qxa3 {[%emt 0:01:48]} 28. h6 {[%emt 0:01:04]} Qa5 {[%emt 0:00:57]} 29. Qc2 {[%emt 0:09:35]} Ba4 {[%emt 0:01:02]} 30. Qa2 {[%emt 0:02:29]} b5 {[%emt 0:01:13]} 31. Qa3 {[%emt 0:00:50]} Qb6 {[%emt 0:04:08]} 32. h7 {[%emt 0:00:11]} a5 {[%emt 0:01:12]} 33. Nf5 {[%emt 0:01:33]} Re6 {[%emt 0:01:03]} 34. Ree1 {[%emt 0:01:44]} Qc7 {[%emt 0:03:01]} 35. Rh5 {[%emt 0:00:35]} f6 {[%emt 0:00:22]} 36. Reh1 {[%emt 0:00:28]} Ka7 {[%emt 0:01:43]} 37. Nh6 {[%emt 0:00:38]} Re7 {[%emt 0:01:12]} 38. Ng8 {[%emt 0:00:21]} Rexh7 {[%emt 0:01:59]} 39. Nxf6 {[%emt 0:00:24]} Rxh5 {[%emt 0:00:09]} 40. Rxh5 {[%emt 0:00:00]} Rxh5 {[%emt 0:00:00]} 41. Bxh5 {[%emt 0:01:27]} Qd8 {[%emt 0:02:02]} 42. Ng4 {[%emt 0:10:12]} Kb6 {[%emt 0:02:27]} 43. Ne5 {[%emt 0:01:06]} Kc7 {[%emt 0:00:53]} 44. Nf7 {[%emt 0:02:29]} Qf6 {[%emt 0:00:08]} 45. Qf8 {[%emt 0:01:18]} b4 {[%emt 0:01:58]} 46. Qa8 {[%emt 0:02:18]} Bc6 {[%emt 0:00:39]} 47. Qa7+ {[%emt 0:00:31]} Bb7 {[%emt 0:00:06]} 48. Ne5 {[%emt 0:00:24]} bxc3 {[%emt 0:03:21]} 49. Nd7 {[%emt 0:00:13]} Qc6 {[%emt 0:01:35]} 50. Qb8+ {[%emt 0:00:52]} Kxd7 {[%emt 0:00:07]} 51. Be8+ {[%emt 0:00:04]} Ke7 {[%emt 0:00:51]} 52. Bxc6 {[%emt 0:00:07]} Bxc6 {[%emt 0:00:13]} 53. Qe5+ {[%emt 0:00:13]} Kd8 {[%emt 0:00:10]} 54. Qxg5+ {[%emt 0:00:19]} Kc7 {[%emt 0:00:14]} 55. Qf5 {[%emt 0:00:46]} a4 {[%emt 0:00:06]} 56. Qc2 {[%emt 0:01:31]} a3 {[%emt 0:00:05]} 57. Ke1 {[%emt 0:00:31]} 1/2-1/2

[Event "Romanian Championship Open 2025"]
[Site "Craiova"]
[Date "2025.02.15"]
[Round "1.10"]
[White "Secheres, Adrian-Simion"]
[Black "Avramescu, Paul-Mihai"]
[Result "1-0"]
[Annotator "ChessBase"]
[ECO "E16"]
[WhiteElo "2350"]
[BlackElo "2008"]
[PlyCount "89"]
[EventDate "2025.02.12"]
[EventCountry "ROU"]
[SourceTitle "playchess.com"]
[Source "ChessBase"]
[SourceQuality "1"]
[TimeControl "40/5400+30:900+30"]

1. d4 {[%emt 0:00:03]} Nf6 {[%emt 0:00:16]} 2. Nf3 {[%emt 0:00:16]} b6 {[%emt 0:01:20]} 3. g3 {[%emt 0:00:56]} Bb7 {[%emt 0:00:06]} 4. Bg2 {[%emt 0:00:12]} e6 {[%emt 0:00:26]} 5. c4 {[%emt 0:00:41]} Bb4+ {[%emt 0:00:13]} 6. Bd2 {[%emt 0:00:37]} Bxd2+ {[%emt 0:00:21]} 7. Qxd2 {[%emt 0:01:21]} O-O {[%emt 0:00:18]} 8. O-O {[%emt 0:01:06]} d6 {[%emt 0:00:07]} 9. Qc2 {[%emt 0:02:56]} Be4 {[%emt 0:00:28]} 10. Qc1 {[%emt 0:00:29]} Nbd7 {[%emt 0:00:16]} 11. Nc3 {[%emt 0:01:32]} Bb7 {[%emt 0:00:11]} 12. Qc2 {[%emt 0:02:12]} Qc8 {[%emt 0:02:14]} 13. e4 {[%emt 0:03:28]} e5 {[%emt 0:00:04]} 14. Rad1 {[%emt 0:01:36]} exd4 {[%emt 0:00:32]} 15. Nxd4 {[%emt 0:00:23]} Re8 {[%emt 0:00:16]} 16. Rfe1 {[%emt 0:04:06]} Nf8 {[%emt 0:03:15]} 17. Nd5 {[%emt 0:05:49]} Qd8 {[%emt 0:02:00]} 18. Nb5 {[%emt 0:07:21]} Nxd5 {[%emt 0:01:20]} 19. cxd5 {[%emt 0:01:06]} Re7 {[%emt 0:01:30]} 20. Re3 {[%emt 0:05:28]} a6 {[%emt 0:02:31]} 21. Nd4 {[%emt 0:00:17]} g6 {[%emt 0:00:53]} 22. Rc3 {[%emt 0:01:14]} Ra7 {[%emt 0:00:27]} 23. Rc1 {[%emt 0:01:36]} Ba8 {[%emt 0:00:15]} 24. h4 {[%emt 0:02:32]} Qd7 {[%emt 0:02:32]} 25. Qd2 {[%emt 0:02:27]} f6 {[%emt 0:01:22]} 26. Kh2 {[%emt 0:04:14]} Kg7 {[%emt 0:00:15]} 27. Qf4 {[%emt 0:04:11]} Qd8 {[%emt 0:07:34]} 28. h5 {[%emt 0:05:13]} Re5 {[%emt 0:00:37]} 29. h6+ {[%emt 0:01:06]} Kf7 {[%emt 0:00:51]} 30. Nf3 {[%emt 0:04:45]} Rh5+ {[%emt 0:03:17]} 31. Kg1 {[%emt 0:00:08]} Qe7 {[%emt 0:02:34]} 32. g4 {[%emt 0:02:33]} g5 {[%emt 0:00:09]} 33. Qf5 {[%emt 0:01:03]} Rxh6 {[%emt 0:00:11]} 34. e5 {[%emt 0:08:09]} Kg7 {[%emt 0:00:51]} 35. Qc8 {[%emt 0:03:55]} c5 {[%emt 0:00:57]} 36. Nd4 {[%emt 0:00:15]} cxd4 {[%emt 0:04:57]} 37. Rc7 {[%emt 0:00:07]} fxe5 {[%emt 0:00:16]} 38. Rxe7+ {[%emt 0:00:39]} Rxe7 {[%emt 0:00:06]} 39. Qxa8 {[%emt 0:00:35]} Rf6 {[%emt 0:00:31]} 40. Qd8 {[%emt 0:00:00]} Ref7 {[%emt 0:00:00]} 41. Be4 {[%emt 0:05:40]} Nd7 {[%emt 0:03:54]} 42. Bf5 {[%emt 0:03:35]} Nc5 {[%emt 0:02:15]} 43. b4 {[%emt 0:00:10]} Rxf5 {[%emt 0:00:17]} 44. gxf5 {[%emt 0:00:16]} Ne4 {[%emt 0:00:08]} 45. f3 {[%emt 0:01:29]} 1-0

[Event "Romanian Championship Open 2025"]
[Site "Craiova"]
[Date "2025.02.15"]
[Round "1.11"]
[White "Ulian, Andrei-Octavian"]
[Black "David, Alexandru-Vasile"]
[Result "0-1"]
[Annotator "ChessBase"]
[ECO "A25"]
[WhiteElo "1996"]
[BlackElo "2331"]
[PlyCount "118"]
[EventDate "2025.02.12"]
[EventCountry "ROU"]
[SourceTitle "playchess.com"]
[Source "ChessBase"]
[SourceQuality "1"]
[TimeControl "40/5400+30:900+30"]

1. c4 {[%emt 0:00:03]} e5 {[%emt 0:01:48]} 2. g3 {[%emt 0:00:51]} Nc6 {[%emt 0:04:08]} 3. Bg2 {[%emt 0:00:41]} Bc5 {[%emt 0:00:13]} 4. Nc3 {[%emt 0:01:01]} a6 {[%emt 0:00:28]} 5. d3 {[%emt 0:04:45]} d6 {[%emt 0:01:27]} 6. e4 {[%emt 0:01:07]} Nge7 {[%emt 0:03:38]} 7. Nge2 {[%emt 0:01:40]} O-O {[%emt 0:03:31]} 8. O-O {[%emt 0:01:13]} f5 {[%emt 0:00:24]} 9. a3 {[%emt 0:03:12]} Ba7 {[%emt 0:05:38]} 10. Nd5 {[%emt 0:10:20]} fxe4 {[%emt 0:11:44]} 11. dxe4 {[%emt 0:03:13]} Bg4 {[%emt 0:00:06]} 12. Qd3 {[%emt 0:02:23]} Qd7 {[%emt 0:00:28]} 13. Bg5 {[%emt 0:02:35]} h6 {[%emt 0:05:05]} 14. Nxe7+ {[%emt 0:05:07]} Nxe7 {[%emt 0:00:18]} 15. Be3 {[%emt 0:01:03]} Bxe3 {[%emt 0:05:35]} 16. fxe3 {[%emt 0:02:50]} Qe6 {[%emt 0:07:37]} 17. Kh1 {[%emt 0:07:05]} c6 {[%emt 0:03:29]} 18. Ng1 {[%emt 0:03:04]} b5 {[%emt 0:00:47]} 19. b3 {[%emt 0:07:47]} Qg6 {[%emt 0:07:07]} 20. h3 {[%emt 0:03:19]} Bd7 {[%emt 0:00:51]} 21. Kh2 {[%emt 0:05:57]} bxc4 {[%emt 0:05:48]} 22. bxc4 {[%emt 0:01:00]} Rab8 {[%emt 0:02:49]} 23. Rxf8+ {[%emt 0:02:05]} Rxf8 {[%emt 0:00:04]} 24. Ra2 {[%emt 0:01:42]} c5 {[%emt 0:02:05]} 25. Rd2 {[%emt 0:03:03]} Rf6 {[%emt 0:02:46]} 26. Nf3 {[%emt 0:01:14]} Bc6 {[%emt 0:02:55]} 27. Nh4 {[%emt 0:02:04]} Qf7 {[%emt 0:00:27]} 28. g4 {[%emt 0:03:24]} g6 {[%emt 0:01:00]} 29. Kg3 {[%emt 0:04:03]} Nc8 {[%emt 0:00:06]} 30. Rb2 {[%emt 0:05:06]} Qc7 {[%emt 0:01:50]} 31. Qb3 {[%emt 0:01:47]} Kg7 {[%emt 0:02:00]} 32. Qb8 {[%emt 0:04:29]} Rf7 {[%emt 0:00:04]} 33. Bf3 {[%emt 0:01:29]} Qd8 {[%emt 0:02:42]} 34. Bg2 {[%emt 0:01:44]} Ra7 {[%emt 0:00:58]} 35. Bf3 {[%emt 0:02:13]} a5 {[%emt 0:01:43]} 36. Qb3 {[%emt 0:01:41]} Rb7 {[%emt 0:00:42]} 37. Qc3 {[%emt 0:00:45]} Rxb2 {[%emt 0:00:08]} 38. Qxb2 {[%emt 0:00:04]} Qb6 {[%emt 0:00:04]} 39. Qc2 {[%emt 0:01:06]} a4 {[%emt 0:00:03]} 40. Bd1 {[%emt 0:00:00]} Ne7 {[%emt 0:00:00]} 41. Nf3 {[%emt 0:02:09]} Ng8 {[%emt 0:05:58]} 42. h4 {[%emt 0:01:50]} Nf6 {[%emt 0:00:15]} 43. Nd2 {[%emt 0:00:15]} g5 {[%emt 0:05:36]} 44. h5 {[%emt 0:03:31]} Kf7 {[%emt 0:03:23]} 45. Bf3 {[%emt 0:03:12]} Ke7 {[%emt 0:00:06]} 46. Bd1 {[%emt 0:01:38]} Qb7 {[%emt 0:03:18]} 47. Bf3 {[%emt 0:00:48]} Bd7 {[%emt 0:00:05]} 48. Be2 {[%emt 0:01:00]} Qb6 {[%emt 0:00:48]} 49. Bf3 {[%emt 0:00:32]} Qa5 {[%emt 0:00:23]} 50. Qd3 {[%emt 0:01:30]} Bxg4 {[%emt 0:01:26]} 51. Bxg4 {[%emt 0:05:27]} Qxd2 {[%emt 0:00:06]} 52. Be2 {[%emt 0:00:09]} Qe1+ {[%emt 0:05:32]} 53. Kg2 {[%emt 0:00:28]} g4 {[%emt 0:00:04]} 54. Qd1 {[%emt 0:00:37]} Qh4 {[%emt 0:00:41]} 55. Qxa4 {[%emt 0:00:23]} Qh3+ {[%emt 0:00:34]} 56. Kg1 {[%emt 0:00:01]} Qxe3+ {[%emt 0:00:10]} 57. Kh1 {[%emt 0:01:08]} Qxe2 {[%emt 0:01:17]} 58. Qa7+ {[%emt 0:00:05]} Nd7 {[%emt 0:00:05]} 59. Qa8 {[%emt 0:00:13]} g3 {[%emt 0:00:06]} 0-1